Workbook

Sheet Performance
A1: Model of Mechanically Compliant Thermoelectric Energy Harvester | P1: by Matthew Zabawa | matthewzabawa@gmail.com
A14: Using Micropelt D602
C15: Temp [C] | D15: Thermal Resistance | E15: k [W/mK] | F15: Area [m^2] | G15: Length [m]
B16: Air | C16: 20
A17: 1 | B17: Heat Sink | C17: =C16-D17*$D$25 -> -2.125163989 | D17: 20 | E17: N25-25B
A18: 2 | B18: Joint . | C18: -3.190785456 | D18: =NHTModel!B13 -> 0.9632665033 | E18: From NHTModel
A19: 3 | B19: Grease . | C19: -4.370794203 | D19: =G19/E19/F19 -> 1.066666667 | E19: 5 | F19: =0.0025*0.00375 -> 9.375e-06 | G19: 5e-05
A20: 4 | B20: TEG . | C20: -17.6458926 | D20: 12 | E20: Micropelt D602
A21: 5 | B21: Grease . | C21: -19.41590572 | D21: =G21/E21/F21 -> 1.6 | E21: 5 | F21: =0.0025*0.0025 -> 6.25e-06 | G21: 5e-05
A22: 6 | B22: Structure | C22: -20 | D22: =G22/E22/F22 -> 0.5279909204 | E22: 167 | F22: =PI()*0.0095^2/4 -> 7.088218425e-05 | G22: 0.00625
A23: 7 | B23: Skin | C23: -20
B24: Total Resistance [W/K]= | D24: =SUM(D17:D22) -> 36.15792409
C25: q [W]= | D25: =(C16-C23)/D24 -> 1.106258199
B26: del T across TEG [C]= | D26: =C19-C20 -> 13.27509839
A27: Est. Open Circuit Voltage [V] | D27: =D26*I54 -> 1.327509839
A28: Est. Max Power [mW] | D28: =(D27/2)^2/J54*1000 -> 2.202852967
B30: note: Temperature represents the interface
C31: between n-1 and n
A33: Using Micropelt D751
C34: Temp [C] | D34: Thermal Resistance | E34: k [W/mK] | F34: Area [m^2] | G34: Length [m]
B35: Air | C35: 20
A36: 1 | B36: Heat Sink | C36: =C35-D36*$D$44 -> 1.303027129 | D36: 13.06 | E36: N25-25B
A37: 2 | B37: Joint . | C37: -0.076005618 | D37: =NHTModel!B13 -> 0.9632665033 | E37: From NHTModel
A38: 3 | B38: Grease . | C38: -0.639861554 | D38: =G38/E38/F38 -> 0.3938583307 | E38: 8.89 | F38: =0.00425*0.00336 -> 1.428e-05 | G38: 5e-05
A39: 4 | B39: TEG . | C39: -18.53512655 | D39: 12.5 | E39: Micropelt D751
A40: 5 | B40: Grease . | C40: -19.244117 | D40: =G40/E40/F40 -> 0.4952360668 | E40: 8.89 | F40: =0.00338*0.00336 -> 1.13568e-05 | G40: 5e-05
A41: 6 | B41: Structure | C41: -20 | D41: =G41/E41/F41 -> 0.5279909204 | E41: 167 | F41: =PI()*0.0095^2/4 -> 7.088218425e-05 | G41: 0.00625
A42: 7 | B42: Skin | C42: -20
B43: Total Resistance [W/K]= | D43: =SUM(D36:D41) -> 27.94035182
C44: q [W]= | D44: =(C35-C42)/D43 -> 1.4316212
B45: del T across TEG [C]= | D45: =C38-C39 -> 17.895265
A46: Est. Open Circuit Voltage [V] | D46: =D45*I55 -> 2.5053371
A47: Est. Max Power [mW] | D47: =(D46/2)^2/J55*1000 -> 5.230594987
A51: Heat Sinks | H51: Thermoelectric Generators
A52: Free Convection Thermal Resistance [C/W] | I52: Net Seebeck Coeff.[V/K] | J52: Electrical Resistance [W]
B53: Height [mm] | H53: Product
A54: Size | B54: 10 | C54: 15 | D54: 20 | E54: 25 | H54: D602 | I54: 0.1 | J54: 200
A55: 19x19 | B55: 21.8 | C55: 19.1 | D55: 17 | E55: 15.2 | H55: D751 | I55: 0.14 | J55: 300
A56: 25x25 | B56: 18.6 | C56: 15.9 | D56: 14 | E56: 12.9
A57: 30x30 | B57: 15 | C57: 12.3 | D57: 10.4 | E57: 9.1
A58: 35x35 | B58: 12.7 | C58: 10.5 | D58: 9.1 | E58: 7.9
A59: 40x40 | B59: 10.6 | C59: 8.4 | D59: 7.2 | E59: 6.4
A60: 45x45 | B60: 9.2 | C60: 7.3 | D60: 6.3 | E60: 5.5
A61: 50x50 | B61: 8.1 | C61: 6.3 | D61: 5.2 | E61: 4.5
A62: http://www.micforg.co.jp/en/c_n50e.html
A63: Hex Pin 2.2mm
A64: 8-10mm spacing
A65: Pure Aluminum with Black Anodize

Sheet NHTModel
A1: Plug Radius (Rp) [mm] (must be < Ro) | B1: 6.789834512 | C1: This is the Control Variable in the Design. To find the optimal value click the Optimize button. (note: Solver must be added in)
A3: Clearance (Cl) [microns] | B3: 50 | C3: Input
A4: Lp [mm] | B4: 8.25
A5: L [mm] | B5: 15
A6: Gap (G) [mm] | B6: 4
A7: Ls [mm] | B7: 3
A8: Outside Radius (Ro) [mm] | B8: 9.5
A9: Metal conductivity (Kal) [W/mK] | B9: 167
A10: Grease Conductivity (Kg) [W/mK] | B10: 3
A13: Total Joint Thermal Resistance (Rtot) [K/W] | B13: =ThermR(B1,B3,B4,B5,B6,B7,B8,B9,B10) -> 0.9632665033 | L13: Plug Radius [m] | M13: 0.006789834512
L14: Thermal Resistance in Plug (Rplg) [K/W] | M14: 0.341090188
L15: Thermal Resistance in Joint (Rjnt) [K/W] | M15: 0.5588174047
L16: Thermal Resistance in Stem (Rstm) [K/W] | M16: 0.06335891052
L18: Total Joint Thermal Resistance (Rtot)[K/W] | M18: 0.9632665033

Sheet TemperatureProfile
A1: 1 | B1: 1 | C1: 1 | D1: 1 | E1: 1 | F1: 1 | G1: 1 | H1: 1 | I1: 1 | J1: 1 | K1: 1 | L1: 1 | M1: 1 | N1: 1 | O1: 1 | P1: 1 | Q1: 1 | R1: 1 | S1: 1 | T1: 1 | U1: 1
A2: 1 | B2: 300 | C2: 300 | D2: 300 | E2: 300 | F2: 300 | G2: 300 | H2: 300 | I2: 300 | J2: 300 | K2: 300 | L2: 300 | M2: 300 | N2: 300 | O2: 295.9872526 | P2: 295.310892 | Q2: 294.9245246 | R2: 294.7285629 | S2: 294.6874846 | T2: 1 | U2: 1
A3: 1 | B3: 298.9138838 | C3: 298.9084006 | D3: 298.8990036 | E3: 298.8855439 | F3: 298.8674583 | G3: 298.8437173 | H3: 298.8126156 | I3: 298.7713382 | J3: 298.7150966 | K3: 298.6353532 | L3: 298.5159927 | M3: 298.3246278 | N3: 297.991856 | O3: 295.606735 | P3: 295.1161476 | Q3: 294.7926418 | R3: 294.6146841 | S3: 294.5616922 | T3: 1 | U3: 1
A4: 1 | B4: 297.8403471 | C4: 297.8300626 | D4: 297.8125149 | E4: 297.7875671 | F4: 297.7544193 | G4: 297.7116078 | H4: 297.6568214 | I4: 297.5865413 | J4: 297.495454 | K4: 297.3755768 | L4: 297.2151375 | M4: 296.997795 | N4: 296.7048422 | O4: 295.0596437 | P4: 294.7094574 | Q4: 294.4621572 | R4: 294.3188528 | S4: 294.2733865 | T4: 1 | U4: 1
A5: 1 | B5: 296.7903033 | C5: 296.7763095 | D5: 296.752576 | E5: 296.7191673 | F5: 296.6754159 | G5: 296.6200347 | H5: 296.5510718 | I5: 296.465791 | J5: 296.3605348 | K5: 296.2306755 | L5: 296.0708943 | M5: 295.8763097 | N5: 295.6453796 | O5: 294.4368461 | P5: 294.1789243 | Q5: 293.992307 | R5: 293.8815739 | S5: 293.8458141 | T5: 1 | U5: 1
A6: 1 | B6: 295.772263 | C6: 295.7557042 | D6: 295.7278032 | E6: 295.6889407 | F6: 295.6388069 | G6: 295.5766158 | H6: 295.5011801 | I6: 295.410959 | J6: 295.3041514 | K6: 295.1789203 | L6: 295.0338663 | M6: 294.8688942 | N6: 294.6865312 | O6: 293.7618343 | P6: 293.5652206 | Q6: 293.4222098 | R6: 293.3366741 | S6: 293.3089519 | T6: 1 | U6: 1
A7: 1 | B7: 294.792211 | C7: 294.774008 | D7: 294.7435271 | E7: 294.701491 | F7: 294.6480114 | G7: 294.5828668 | H7: 294.5056409 | I7: 294.4158375 | J7: 294.313028 | K7: 294.1970755 | L7: 294.0684659 | M7: 293.9287497 | N7: 293.7810158 | O7: 293.0456614 | P7: 292.8900629 | Q7: 292.7770982 | R7: 292.7094919 | S7: 292.687629 | T7: 1 | U7: 1
A8: 1 | B8: 293.8540853 | C8: 293.8348 | D8: 293.8026813 | E8: 293.7587626 | F8: 293.7035421 | G8: 293.6372896 | H8: 293.5602068 | I8: 293.4725499 | J8: 293.3747597 | K8: 293.2676173 | L8: 293.1524276 | M8: 293.0312088 | N8: 292.9068329 | O8: 292.2953769 | P8: 292.1665876 | Q8: 292.0734618 | R8: 292.0178537 | S8: 291.9999516 | T8: 1 | U8: 1
A9: 1 | B9: 292.9605525 | C9: 292.9403698 | D9: 292.9068991 | E9: 292.8614362 | F9: 292.8047938 | G9: 292.737622 | H9: 292.6605688 | I9: 292.5743911 | J9: 292.4800519 | K9: 292.3788156 | L9: 292.2723373 | M9: 292.1627299 | N9: 292.0525841 | O9: 291.5157274 | P9: 291.4030766 | Q9: 291.3219485 | R9: 291.2736423 | S9: 291.2581631 | T9: 1 | U9: 1
A10: 1 | B10: 292.1138252 | C10: 292.0926019 | D10: 292.0575073 | E10: 292.0100568 | F10: 291.9513071 | G10: 291.8821863 | H10: 291.8036527 | I10: 291.7167916 | J10: 291.6228884 | K10: 291.523484 | L10: 291.4204143 | M10: 291.3158221 | N10: 291.2121326 | O10: 290.7096111 | P10: 290.6044409 | Q10: 290.5289356 | R10: 290.4840814 | S10: 290.4697548 | T10: 1 | U10: 1
A11: 1 | B11: 291.3163763 | C11: 291.293717 | D11: 291.256304 | E11: 291.2058439 | F11: 291.1435792 | G11: 291.0706364 | H11: 290.9881866 | I11: 290.8975379 | J11: 290.8001945 | K11: 290.6978946 | L11: 290.5926253 | M11: 290.4866118 | N11: 290.3822758 | O11: 289.8782213 | P11: 289.7728689 | Q11: 289.6973731 | R11: 289.6525831 | S11: 289.6382895 | T11: 1 | U11: 1
A12: 1 | B12: 290.5714887 | C12: 290.5468285 | D12: 290.5061193 | E12: 290.4512411 | F12: 290.3835747 | G12: 290.3043794 | H12: 290.2149666 | I12: 290.1167971 | J12: 290.0115414 | K12: 289.9011154 | L12: 289.7876903 | M12: 289.6736747 | N12: 289.561665 | O12: 289.021065 | P12: 288.908087 | Q12: 288.827184 | R12: 288.7792017 | S12: 288.763867 | T12: 1 | U12: 1
A13: 1 | B13: 289.8836288 | C13: 289.8563174 | D13: 289.8111891 | E13: 289.7502804 | F13: 289.6750613 | G13: 289.5868577 | H13: 289.4870495 | I13: 289.377185 | J13: 289.2590578 | K13: 289.1347566 | L13: 289.006688 | M13: 288.8775665 | N13: 288.7503619 | O13: 288.1358819 | P13: 288.0073696 | Q13: 287.9153464 | R13: 287.8607593 | S13: 287.8432614 | T13: 1 | U13: 1
A14: 1 | B14: 289.2586369 | C14: 289.228031 | D14: 289.177365 | E14: 289.1088034 | F14: 289.0238402 | G14: 288.9237816 | H14: 288.8099788 | I14: 288.6839727 | J14: 288.5476035 | K14: 288.4030977 | L14: 288.2531297 | M14: 288.1008436 | N14: 287.949814 | O14: 287.2184401 | P14: 287.065318 | Q14: 286.9556981 | R14: 286.8906834 | S14: 286.8697751 | T14: 1 | U14: 1
A15: 1 | B15: 288.7037183 | C15: 288.6692922 | D15: 288.612154 | E15: 288.5345427 | F15: 288.4378825 | G15: 288.3233354 | H15: 288.1920743 | I15: 288.0454677 | J15: 287.8852395 | K15: 287.7136238 | L15: 287.5335117 | M15: 287.3485614 | N15: 287.1632219 | O15: 286.262125 | P15: 286.0733411 | Q15: 285.9384441 | R15: 285.8585868 | S15: 285.8328509 | T15: 1 | U15: 1
A16: 1 | B16: 288.2271948 | C16: 288.18868 | D16: 288.1245463 | E16: 288.0370174 | F16: 287.9273212 | G16: 287.7963057 | H16: 287.6447445 | I16: 287.4735576 | J16: 287.2840297 | K16: 287.0780679 | L16: 286.858506 | M16: 286.6294314 | N16: 286.3964336 | O16: 285.257104 | P16: 285.0186287 | Q16: 284.8492949 | R16: 284.7496419 | S16: 284.7175473 | T16: 1 | U16: 1
A17: 1 | B17: 287.8379535 | C17: 287.7955227 | D17: 287.7245617 | E17: 287.6271495 | F17: 287.5041762 | G17: 287.3559848 | H17: 287.1826708 | I17: 286.9843015 | J17: 286.7611651 | K17: 286.514127 | L17: 286.2451688 | M17: 285.9581599 | N17: 285.6597961 | O17: 284.1884117 | P17: 283.8820609 | Q17: 283.6680973 | R17: 283.5439469 | S17: 283.5041873 | T17: 1 | U17: 1
A18: 1 | B18: 287.5444947 | C18: 287.4990531 | D18: 287.4224559 | E18: 287.3164844 | F18: 287.1816151 | G18: 287.0175644 | H18: 286.8235054 | I18: 286.5982013 | J18: 286.3401656 | K18: 286.0479707 | L18: 285.7209046 | M18: 285.3603322 | N18: 284.9722704 | O18: 283.03076 | P18: 282.6336125 | Q18: 282.3668582 | R18: 282.2165406 | S18: 282.16905 | T18: 1 | U18: 1
A19: 1 | B19: 287.353349 | C19: 287.3073088 | D19: 287.2276437 | E19: 287.1159497 | F19: 286.9725227 | G19: 286.7965867 | H19: 286.5863965 | I19: 286.3392061 | J19: 286.0511315 | K19: 285.7169678 | L19: 285.3301499 | M19: 284.8834987 | N19: 284.3728665 | O19: 281.7313466 | P19: 281.2218783 | Q19: 280.9078928 | R19: 280.7399936 | S19: 280.6881957 | T19: 1 | U19: 1
A20: 1 | B20: 287.265812 | C20: 287.2266353 | D20: 287.147784 | E20: 287.0342681 | F20: 286.8872734 | G20: 286.7060453 | H20: 286.4883893 | I20: 286.2306057 | J20: 285.9270046 | K20: 285.5688392 | L20: 285.1421139 | M20: 284.6228903 | N20: 283.9665696 | O20: 280.1380907 | P20: 279.5538228 | Q20: 279.2479435 | R20: 279.0943228 | S20: 279.0482291 | T20: 1 | U20: 1
A21: 1 | B21: 0 | C21: 0 | D21: 0 | E21: 0 | F21: 0 | G21: 0 | H21: 0 | I21: 0 | J21: 0 | K21: 0 | L21: 0 | M21: 0 | N21: 0 | O21: 277.7221417 | P21: 277.5923157 | Q21: 277.454777 | R21: 277.3668178 | S21: 277.3379104 | T21: 1 | U21: 1
A22: 1 | B22: 0 | C22: 0 | D22: 0 | E22: 0 | F22: 0 | G22: 0 | H22: 0 | I22: 0 | J22: 0 | K22: 0 | L22: 0 | M22: 0 | N22: 0 | O22: 275.692885 | P22: 275.6577558 | Q22: 275.6024971 | R22: 275.5605943 | S22: 275.5458252 | T22: 1 | U22: 1
A23: 1 | B23: 0 | C23: 0 | D23: 0 | E23: 0 | F23: 0 | G23: 0 | H23: 0 | I23: 0 | J23: 0 | K23: 0 | L23: 0 | M23: 0 | N23: 0 | O23: 273.769209 | P23: 273.7581367 | Q23: 273.7366934 | R23: 273.7186659 | S23: 273.7120297 | T23: 1 | U23: 1
A24: 1 | B24: 0 | C24: 0 | D24: 0 | E24: 0 | F24: 0 | G24: 0 | H24: 0 | I24: 0 | J24: 0 | K24: 0 | L24: 0 | M24: 0 | N24: 0 | O24: 271.8792927 | P24: 271.875845 | Q24: 271.868491 | R24: 271.8619636 | S24: 271.8595067 | T24: 1 | U24: 1
A25: 1 | B25: 1 | C25: 1 | D25: 1 | E25: 1 | F25: 1 | G25: 1 | H25: 1 | I25: 1 | J25: 1 | K25: 1 | L25: 1 | M25: 1 | N25: 1 | O25: 270 | P25: 270 | Q25: 270 | R25: 270 | S25: 270 | T25: 1 | U25: 1
A26: 1 | B26: 1 | C26: 1 | D26: 1 | E26: 1 | F26: 1 | G26: 1 | H26: 1 | I26: 1 | J26: 1 | K26: 1 | L26: 1 | M26: 1 | N26: 1 | O26: 1 | P26: 1 | Q26: 1 | R26: 1 | S26: 1 | T26: 1 | U26: 1
